bitfinex-derivatives/quotes_SOLF0:USTF0_20240816
["timestamp","ask_amount","ask_price","bid_price","bid_amount"]
[1723842401816,3.5401,141.19,141.18,0.05112974]
[1723842404329,3.5401,141.19,140.92,7.39639992]
[1723842404330,17.981,141.19,141.13,14.4215]
[1723842404529,2.6361,141.18,141.13,10.88]
[1723842405527,3.5411,141.15,141.14,0.05424081]
[1723842406034,3.5411,141.15,141.12,14.4217]
[1723842406231,3.5411,141.15,141.08,8.08878528]
[1723842406232,18.02625723,141.17,141.01,0.1024]
[1723842406429,4.52,141.15,141.1,10.88]
[1723842406624,8.0356024,141.15,141.1,10.88]
[1723842407132,0.04601775,141.14,141.11,0.04468727]
[1723842408131,3.5418,141.13,141.11,0.04468727]
[1723842408932,3.5419,141.12,141.11,0.04468727]
[1723842414139,3.5417,141.13,141.11,0.04468727]
[1723842414330,1.34951775,141.14,141.11,0.04468727]
[1723842414734,3.5419,141.13,141.11,0.04468727]
[1723842415332,1.34951775,141.14,141.11,0.04468727]
[1723842416435,1.3819,141.13,141.11,0.04468727]
[1723842416838,3.5419,141.12,141.11,0.04468727]
[1723842419241,3.5426,141.09,141.05,27.23]
[1723842419539,4.52,141.1,141.06,3.5432]
[1723842419733,4.52,141.1,141.03,27.23]
[1723842420434,3.5433,141.07,141.05,0.04660347]
[1723842420638,0.0520083,141.08,141.05,0.04660347]
[1723842420639,4.52,141.06,141.05,0.04660347]
[1723842420824,4.52,141.06,140.99,27.23]
[1723842421226,3.5443,141.03,141.0,3.5448]
[1723842421439,4.52,141.06,140.99,27.23]
[1723842421633,7.101,141.05,140.99,27.23]
[1723842421842,3.5448,141.01,140.97,30.7754]
[1723842422137,3.5448,141.01,140.98,0.04486824]
[1723842422335,8.0448,141.01,140.98,3.59016824]
[1723842423345,3.5449,141.0,140.98,0.04486824]
[1723842424241,8.0447,141.01,140.98,3.59026824]
[1723842424542,4.5,141.01,140.98,3.59026824]
[1723842425151,8.0448,141.01,140.98,0.04486824]
[1723842425734,8.0448,141.01,140.98,3.59016824]
[1723842429739,4.5,141.01,140.98,0.04486824]
[1723842429951,4.5,141.01,140.98,10.93486824]
[1723842430338,8.0448,141.01,140.98,14.48016824]
[1723842431034,3.5448,141.01,140.99,10.89]
[1723842431237,8.0648,141.01,140.99,10.89]
[1723842433548,8.0648,141.01,140.98,14.48016824]
[1723842436346,0.04552313,141.03,141.0,10.89]
[1723842436550,4.56552313,141.03,141.01,10.89]
[1723842436752,0.04552313,141.03,141.02,3.5444]
[1723842436958,0.04552313,141.03,141.01,10.89]
[1723842437151,0.04552313,141.03,141.0,10.89]
[1723842437452,3.58982313,141.03,141.0,14.4347]
[1723842437652,3.58982313,141.03,141.0,14.4877148]
[1723842438454,3.58982313,141.03,141.01,3.5446]
[1723842438645,3.58982313,141.03,141.0,10.9430148]
[1723842438955,3.58982313,141.03,141.0,0.0530148]
[1723842438956,3.5446,141.02,141.0,0.0530148]
[1723842440741,3.5446,141.02,141.0,3.5979148]
[1723842440938,3.5446,141.02,141.0,0.0530148]
[1723842441655,3.5446,141.01,141.0,0.0530148]
[1723842442241,3.5445,141.02,141.0,0.0530148]
[1723842442652,0.04552313,141.03,141.0,3.5978148]
[1723842443052,3.5444,141.02,141.0,0.0530148]
[1723842445153,3.5446,141.01,141.0,0.0530148]
[1723842448653,8.0646,141.01,141.0,0.0530148]
[1723842460987,4.8839,141.02,141.0,0.0530148]
[1723842461187,4.8839,141.02,141.0,10.9430148]
[1723842461376,3.5445,141.02,141.0,10.9430148]
[1723842461579,3.5445,141.02,141.0,0.0530148]
[1723842461877,3.5446,141.01,141.0,0.0530148]
[1723842466387,3.5445,141.02,141.0,0.0530148]
[1723842467090,8.10972313,141.03,141.0,0.0530148]
[1723842467485,8.10972313,141.03,141.0,14.4877148]
[1723842467789,8.10972313,141.03,141.0,10.9430148]
[1723842467790,4.56552313,141.03,141.0,10.9430148]
[1723842467975,4.56552313,141.03,141.0,14.4877148]
[1723842468474,8.10982313,141.03,141.0,14.4877148]
[1723842468879,8.10982313,141.03,141.0,3.5977148]
[1723842469074,8.10982313,141.03,141.0,14.4877148]
[1723842469385,8.10982313,141.03,141.01,3.5446]
[1723842469788,8.10982313,141.03,141.0,10.9430148]
[1723842470093,3.5445,141.02,141.0,0.0530148]
[1723842472287,0.04552313,141.03,141.01,10.89]
[1723842472588,0.04552313,141.03,141.02,10.89]
[1723842473093,0.04552313,141.03,141.01,14.4344]
[1723842476281,0.04552313,141.03,141.02,3.5444]
[1723842480398,0.04552313,141.03,141.02,14.4344]
[1723842481491,15.1637,141.09,141.06,3.5433]
[1723842481692,10.6437,141.09,141.06,14.4333]
[1723842482588,10.6437,141.09,141.06,14.4869229]
[1723842482589,10.69574558,141.09,141.06,14.4869229]
[1723842484696,7.15304558,141.09,141.06,0.0536229]
[1723842485086,3.543,141.08,141.06,0.0536229]
[1723842485507,7.15304558,141.09,141.06,0.0536229]
[1723842485699,10.69574558,141.09,141.06,3.5968229]
[1723842485889,7.15304558,141.09,141.06,0.0536229]
[1723842486096,10.89,141.08,141.06,0.0536229]
[1723842486286,3.5431,141.07,141.06,0.0536229]
[1723842487293,10.89,141.07,140.97,69.39379186]
[1723842487497,14.36034359,141.07,140.99,10.89]
[1723842487898,3.5437,141.05,141.01,3.5444]
[1723842488394,0.04799439,141.04,141.02,0.0490521]
[1723842488593,3.59199439,141.04,141.02,0.0490521]
[1723842489612,3.5441,141.03,141.02,0.0490521]
[1723842496615,3.5441,141.03,140.97,80.28379186]
[1723842496616,10.89,141.03,140.97,80.28379186]
[1723842497012,3.5447,141.01,140.98,3.5453]
[1723842497513,3.5449,141.0,140.98,3.59854212]
[1723842497816,3.5449,141.0,140.98,0.05324212]
[1723842498020,3.5451,140.99,140.98,0.05324212]
[1723842500105,3.5462,140.95,140.85,7.0972]
[1723842500313,17.991,140.99,140.91,10.89]
[1723842500314,4.52,140.96,140.91,10.89]
[1723842500720,3.5463,140.95,140.92,3.5467]
[1723842501314,3.59590249,140.95,140.92,3.59374428]
[1723842502006,3.5464,140.94,140.92,0.04704428]
[1723842502205,0.04960249,140.95,140.92,0.04704428]
[1723842502424,10.89,140.94,140.92,0.04704428]
[1723842502619,3.5466,140.93,140.92,0.04704428]
[1723842503516,3.5473,140.91,140.88,3.5477]
[1723842503712,4.52,140.91,140.86,70.94569982]
[1723842503919,3.5475,140.9,140.86,70.94569982]
[1723842504518,0.04488117,140.89,140.87,0.04631853]
[1723842505908,3.5479,140.88,140.87,0.04631853]
[1723842506115,3.48163057,140.88,140.78,4.52]
[1723842506312,4.52,140.87,140.81,10.89]
[1723842506623,3.5487,140.85,140.82,3.5492]
[1723842507130,3.59411382,140.85,140.82,3.59876099]
[1723842507618,3.59411382,140.85,140.83,10.89]
[1723842507619,0.04541382,140.85,140.83,10.89]
[1723842507822,0.04541382,140.85,140.84,10.89]
[1723842508413,0.04541382,140.85,140.84,14.4389]
[1723842509117,0.04541382,140.85,140.83,14.4391]
[1723842509822,3.59401382,140.85,140.83,10.89]
[1723842513323,0.04541382,140.85,140.83,14.4391]
[1723842513824,0.04541382,140.85,140.82,0.04956099]
[1723842513825,0.04541382,140.85,140.84,14.4389]
[1723842516031,4.52,140.89,140.87,14.438]
[1723842516217,3.5476,140.9,140.87,14.438]
[1723842516915,1.3519,140.93,140.88,10.89]
[1723842517224,0.04716843,140.9,140.88,10.89]
[1723842517425,0.04716843,140.9,140.88,14.4377]
[1723842517626,0.04716843,140.9,140.88,3.5477]
[1723842523131,3.59466843,140.9,140.87,14.4835456]
[1723842523523,3.5478,140.89,140.87,0.0455456]
[1723842525330,3.5479,140.88,140.87,0.0455456]
[1723842525728,8.0679,140.88,140.87,0.0455456]
[1723842530221,18.9579,140.88,140.87,0.0455456]
[1723842530418,18.9579,140.88,140.74,35.4627]
[1723842530419,22.511,140.88,140.77,9.10943498]
[1723842530634,10.89,140.85,140.78,10.89]
[1723842531033,3.5493,140.83,140.8,3.5498]
[1723842531427,3.60202926,140.83,140.8,3.59542647]
[1723842532235,3.5496,140.82,140.8,0.04562647]
[1723842533223,3.5496,140.81,140.8,0.04562647]
[1723842534636,14.4396,140.81,140.8,0.04562647]
[1723842537229,15.8138,140.81,140.8,0.04562647]
[1723842540135,8.43252926,140.83,140.8,0.04562647]
[1723842540334,4.52,140.81,140.8,0.04562647]
[1723842541638,4.52,140.81,140.8,3.59552647]
[1723842542043,8.43252926,140.83,140.8,3.59552647]
[1723842542044,7.15372926,140.83,140.8,0.04562647]
[1723842542345,4.52,140.82,140.8,3.59542647]
[1723842547246,4.52,140.82,140.81,3.5496]
[1723842548543,4.52,140.82,140.8,3.59542647]
[1723842557448,8.0694,140.82,140.8,3.59542647]
[1723842558250,14.4396,140.81,140.8,0.04562647]
[1723842558952,3.5496,140.81,140.8,0.04562647]
[1723842559153,14.4396,140.81,140.8,0.04562647]
[1723842560251,8.4872,140.82,140.8,0.04562647]
[1723842560450,4.52,140.82,140.8,0.04562647]
[1723842560752,4.52,140.82,140.8,3.59532647]
[1723842561050,4.52,140.82,140.8,0.04562647]
[1723842561652,3.5496,140.81,140.8,0.04562647]
[1723842561851,4.52,140.82,140.8,0.04562647]
[1723842562555,8.0695,140.82,140.8,0.04562647]
[1723842562852,0.05272926,140.83,140.8,3.59542647]
[1723842563151,4.57272926,140.83,140.8,3.59542647]
[1723842563458,0.05272926,140.83,140.8,0.04562647]
[1723842564250,0.05272926,140.83,140.81,3.5494]
[1723842564450,0.05272926,140.83,140.8,0.04562647]
[1723842565758,3.5494,140.82,140.8,0.04562647]
[1723842566754,14.49192926,140.83,140.8,3.59542647]
[1723842567058,10.89,140.81,140.8,0.04562647]
[1723842567448,14.4396,140.81,140.8,0.04562647]
[1723842568347,15.7319,140.81,140.8,0.04562647]
[1723842569058,12.1823,140.81,140.77,1.005]
[1723842569253,10.89,140.78,140.77,1.005]
[1723842569955,14.4404,140.78,140.77,1.005]
[1723842570756,3.5504,140.78,140.77,1.005]
[1723842570953,0.04837017,140.79,140.77,1.005]
[1723842572860,3.59857017,140.79,140.77,1.005]
[1723842573462,3.5504,140.78,140.77,1.005]
[1723842573658,10.93837017,140.79,140.77,1.005]
[1723842575767,3.5504,140.78,140.77,1.005]
[1723842577560,3.59857017,140.79,140.77,1.005]
[1723842579266,0.04837017,140.79,140.77,4.5556]
[1723842579761,0.04837017,140.79,140.78,3.5504]
[1723842602680,0.04837017,140.79,140.77,4.5555]
[1723842602887,0.04837017,140.79,140.77,1.005]
[1723842603181,0.04837017,140.79,140.78,3.5504]
[1723842604087,0.04837017,140.79,140.78,14.4404]
[1723842604283,4.52,140.86,140.83,10.89]
[1723842604470,4.52,140.86,140.82,10.89]
[1723842604675,3.5488,140.85,140.82,10.89]
[1723842604979,3.5488,140.85,140.83,3.5491]
[1723842605284,3.59791598,140.85,140.83,3.59607501]
[1723842606484,0.04911598,140.85,140.84,3.5489]
[1723842607279,0.04911598,140.85,140.83,3.59597501]
[1723842611082,0.04911598,140.85,140.84,3.5489]
[1723842612396,10.93911598,140.85,140.83,0.04697501]
[1723842612595,10.89,140.84,140.83,0.04697501]
[1723842612784,14.4389,140.84,140.83,0.04697501]
[1723842613085,18.9589,140.84,140.83,0.04697501]
[1723842614396,8.0689,140.84,140.83,0.04697501]
[1723842619608,4.52,140.84,140.83,10.93697501]
[1723842619905,0.04911598,140.85,140.83,10.93697501]
[1723842620101,0.04911598,140.85,140.84,3.5489]
[1723842620900,5.8265,140.9,140.87,3.548]
[1723842621097,5.8265,140.9,140.88,10.89]
[1723842621292,4.52,140.9,140.88,14.4377]
[1723842621492,1.3369,140.91,140.88,14.4377]
[1723842621688,4.8841,140.91,140.88,14.4377]
[1723842621893,4.93474506,140.91,140.88,14.48882571]
[1723842622990,0.05064506,140.91,140.88,10.94112571]
[1723842623192,35.504,141.01,140.9,10.89]
[1723842623392,35.504,141.01,140.87,4.52]
[1723842623393,2.7914,141.0,140.95,10.89]
[1723842623592,3.5452,140.99,140.95,14.436]
[1723842623991,3.5452,140.99,140.95,10.89]
[1723842624397,0.04975778,140.98,140.95,10.89]
[1723842624697,0.04975778,140.98,140.96,0.04983793]
[1723842626692,0.04975778,140.98,140.96,3.59563793]
[1723842626998,0.04975778,140.98,140.96,10.93983793]
[1723842627399,0.04975778,140.98,140.97,3.5456]
[1723842631601,10.93975778,140.98,140.96,0.04983793]
[1723842632810,3.5456,140.97,140.96,0.04983793]
[1723842633510,10.89,140.97,140.92,3.5467]
[1723842633710,1.3918,140.96,140.92,3.5467]
[1723842634108,1.3918,140.96,140.91,10.89]
[1723842634109,4.9377,140.96,140.93,3.5466]
[1723842634511,4.9377,140.96,140.92,3.5467]
[1723842634714,4.98777477,140.96,140.93,0.04707362]
[1723842635212,1.44187477,140.96,140.93,3.59347362]
[1723842635708,1.44187477,140.96,140.93,0.04707362]
[1723842636311,1.44187477,140.96,140.93,3.59357362]
[1723842636913,1.44187477,140.96,140.94,3.5463]
[1723842637514,1.44187477,140.96,140.93,3.59357362]
[1723842637909,12.33187477,140.96,140.93,0.04707362]
[1723842638117,10.89,140.95,140.93,0.04707362]
[1723842638614,14.4363,140.95,140.93,0.04707362]
[1723842639611,10.89,140.94,140.77,8.1061]
[1723842639903,10.89,140.92,140.86,10.89]
[1723842640108,14.437,140.92,140.86,10.89]
[1723842640812,0.0485368,140.91,140.88,3.60095253]
[1723842641417,0.0485368,140.91,140.89,3.5476]
[1723842647215,0.0485368,140.91,140.9,27.27]
[1723842647620,0.0485368,140.91,140.9,30.8174]
[1723842648722,10.7637,140.96,140.9,27.27]
[1723842648910,10.7637,140.96,140.92,27.27]
[1723842649511,10.7637,140.96,140.93,3.5464]
[1723842649707,10.8168694,140.96,140.93,3.59921611]
[1723842649913,27.27,140.94,140.83,4.5]
[1723842650119,30.83209481,140.94,140.84,27.27]
[1723842650925,3.5474,140.9,140.86,3.5481]
[1723842651224,3.60021939,140.9,140.88,0.04876168]
[1723842651718,0.05281939,140.9,140.88,0.04876168]
[1723842651914,0.05281939,140.9,140.88,27.31876168]
[1723842652108,4.5,140.95,140.88,27.31876168]
[1723842652313,4.5,140.95,140.91,3.547]
[1723842652508,3.5464,140.94,140.91,3.547]
[1723842653219,3.5914729,140.94,140.91,3.60125492]
[1723842653921,0.0450729,140.94,140.92,3.5468]
[1723842654318,4.5450729,140.94,140.92,3.5468]
[1723842660425,8.4112,141.02,140.92,27.27]
[1723842660627,8.4112,141.02,140.91,0.05425492]
[1723842660628,11.604,141.01,140.94,27.27]
[1723842661422,3.59240701,140.99,140.96,0.05097186]
[1723842662720,3.5454,140.98,140.96,0.05097186]
[1723842664131,0.04710701,140.99,140.96,0.05097186]
[1723842664517,3.5454,140.98,140.96,0.05097186]
[1723842664716,4.5,140.97,140.96,0.05097186]
[1723842665734,8.0456,140.97,140.96,0.05097186]
[1723842668540,4.5,140.97,140.96,0.05097186]
[1723842669039,4.54710701,140.99,140.96,0.05097186]
[1723842669733,0.04710701,140.99,140.97,27.27]
[1723842670326,0.04710701,140.99,140.98,3.5454]
[1723842670833,0.04710701,140.99,140.97,3.5455]
[1723842674131,0.04710701,140.99,140.96,3.59677186]
[1723842674332,0.04710701,140.99,140.96,0.05097186]
[1723842675837,3.5456,140.97,140.96,0.05097186]
[1723842676032,0.04710701,140.99,140.92,27.27]
[1723842676230,27.31710701,140.99,140.9,27.27]
[1723842676431,27.27,140.99,140.9,27.27]
[1723842677348,3.5462,140.95,140.93,0.04486274]
[1723842677542,8.0462,140.95,140.93,0.04486274]
[1723842678649,4.5,140.95,140.93,3.59146274]
[1723842680549,4.5,140.95,140.94,30.8164]
[1723842680748,0.05058728,140.96,140.94,27.27]
[1723842681050,0.05058728,140.96,140.95,3.5461]
[1723842681652,7.53242191,141.02,140.94,27.27]
[1723842681852,7.53242191,141.02,140.96,27.27]
[1723842681853,4.5,141.01,140.96,27.27]
[1723842682052,4.5,141.01,140.98,27.27]
[1723842682244,4.5,141.01,140.98,30.8151]
[1723842682745,4.5,141.01,140.98,27.27]
[1723842683046,4.55126155,141.01,140.99,3.5451]
[1723842683950,4.55126155,141.01,140.98,0.04575219]
[1723842685054,8.09596155,141.01,140.98,3.59105219]
[1723842688467,8.09596155,141.01,140.99,3.545]
[1723842688665,8.09596155,141.01,140.98,0.04575219]
[1723842688970,8.09596155,141.01,140.98,3.59085219]
[1723842689669,4.55126155,141.01,140.99,3.5451]
[1723842692865,4.55126155,141.01,141.0,3.5449]
[1723842695367,4.55126155,141.01,140.99,3.545]
[1723842695663,8.09586155,141.01,140.98,3.59095219]
[1723842698975,4.55126155,141.01,140.98,0.04575219]
[1723842699573,8.09596155,141.01,140.98,3.59095219]
[1723842703977,8.09596155,141.01,140.98,14.48095219]
[1723842705768,8.09596155,141.01,140.98,3.59095219]
[1723842705973,4.55126155,141.01,140.98,0.04575219]
[1723842706576,10.89,141.0,140.91,4.5]
[1723842706770,10.89,140.98,140.91,4.5]
[1723842706977,3.5464,140.94,140.91,3.547]
[1723842707375,3.47831203,140.95,140.91,3.547]
[1723842707678,3.59262308,140.94,140.92,0.04950273]
[1723842707862,4.5,140.93,140.92,0.04950273]
[1723842709776,8.0466,140.93,140.92,0.04950273]
[1723842717380,8.0466,140.93,140.87,27.27]
[1723842717381,4.5,140.93,140.85,27.27]
[1723842717572,1.3883,140.92,140.87,27.27]
[1723842718366,0.04647848,140.91,140.88,0.0523559]
[1723842718781,0.04647848,140.91,140.88,3.6000559]
[1723842718782,3.59377848,140.91,140.88,3.6000559]
[1723842720177,0.04647848,140.91,140.9,27.27]
[1723842720778,0.04647848,140.91,140.9,30.8174]
[1723842722881,4.5,140.95,140.9,27.27]
[1723842723786,3.5464,140.94,140.91,3.5469]
[1723842723986,3.59311154,140.94,140.91,0.04520676]
[1723842724587,0.04671154,140.94,140.92,3.5469]
[1723842726292,3.59311154,140.94,140.91,3.59220676]
[1723842727495,0.04671154,140.94,140.92,3.5468]
[1723842727688,0.04671154,140.94,140.91,0.04520676]
[1723842727989,3.59321154,140.94,140.91,3.59220676]
[1723842728581,3.59321154,140.94,140.85,66.37206991]
[1723842728582,0.04671154,140.94,140.85,66.37206991]
[1723842728886,0.04671154,140.94,140.78,27.27]
[1723842728887,49.0,140.88,140.78,27.27]
[1723842729195,4.5,140.87,140.78,27.27]
[1723842729894,4.5,140.87,140.73,5.793]
[1723842729895,27.32077536,140.84,140.81,0.05213961]
[1723842730081,27.27,140.82,140.73,1.293]
[1723842730284,3.5508,140.77,140.73,1.293]
[1723842730492,27.27,140.82,140.73,1.293]
[1723842730995,3.5516,140.74,140.72,1.3599]
[1723842731194,27.27,140.8,140.67,27.27]
[1723842731195,8.11524959,140.75,140.67,27.27]
[1723842731389,8.11524959,140.75,140.65,31.19]
[1723842731390,4.5,140.75,140.65,31.19]
[1723842731585,3.5523,140.71,140.66,3.5534]
[1723842732189,3.5523,140.71,140.69,0.04918984]
[1723842732895,0.05191503,140.7,140.69,0.04918984]
[1723842733594,0.05191503,140.7,140.69,27.31918984]
[1723842733797,27.27,140.81,140.71,27.27]
[1723842734099,3.5516,140.74,140.71,27.27]
[1723842734781,0.05248916,140.74,140.71,30.86839647]
[1723842735186,0.05248916,140.74,140.71,27.31629647]
[1723842735497,3.60388916,140.74,140.71,27.31629647]
[1723842736206,3.60388916,140.74,140.71,30.86839647]
[1723842736588,0.05248916,140.74,140.71,27.31629647]
[1723842736788,0.05248916,140.74,140.72,3.5518]
[1723842737392,0.05248916,140.74,140.71,30.86829647]
[1723842737796,0.05248916,140.74,140.71,27.31629647]
[1723842738098,3.60388916,140.74,140.71,27.31629647]
[1723842738399,3.60388916,140.74,140.71,0.04629647]
[1723842739705,3.60388916,140.74,140.71,3.59839647]
[1723842741703,0.05248916,140.74,140.72,3.5519]
[1723842744205,3.60388916,140.74,140.71,3.59829647]
[1723842745103,3.5517,140.73,140.71,3.59829647]
[1723842745293,0.05248916,140.74,140.71,0.04629647]
[1723842747807,3.5519,140.72,140.71,0.04629647]
[1723842748005,0.05248916,140.74,140.71,0.04629647]
[1723842748399,3.5517,140.73,140.71,0.04629647]
[1723842749202,0.05248916,140.74,140.71,0.04629647]
[1723842749596,0.05248916,140.74,140.71,3.59839647]
[1723842749793,3.60408916,140.74,140.71,3.59839647]
[1723842755002,3.5517,140.73,140.71,3.59839647]
[1723842756112,3.60398916,140.74,140.71,3.59839647]
[1723842762419,3.60398916,140.74,140.71,0.04629647]
[1723842763712,3.60398916,140.74,140.71,3.59829647]
[1723842764020,0.05248916,140.74,140.71,0.04629647]
[1723842764417,0.05248916,140.74,140.72,3.5518]
[1723842767321,0.05248916,140.74,140.71,0.04629647]
[1723842767322,0.05248916,140.74,140.73,3.5517]
[1723842769520,3.5519,140.72,140.71,0.04629647]
[1723842769714,4.54,140.72,140.71,0.04629647]
[1723842772220,4.54,140.72,140.69,48.0]
[1723842772425,3.5524,140.7,140.69,48.0]
[1723842772724,4.54,140.72,140.69,48.0]
[1723842772725,31.81,140.72,140.69,48.0]
[1723842773627,31.85782523,140.72,140.69,48.04732254]
[1723842773822,3.5524,140.7,140.69,48.04732254]
[1723842774226,30.8224,140.7,140.69,45.83162254]
[1723842774426,27.27,140.7,140.64,1.005]
[1723842774617,31.85782523,140.72,140.69,1.0]
[1723842774817,3.5535,140.66,140.64,1.005]
[1723842775014,4.54,140.65,140.64,1.005]
[1723842775428,8.0937,140.65,140.64,1.005]
[1723842776329,4.54,140.65,140.64,1.005]
[1723842777217,0.05262468,140.66,140.64,1.005]
[1723842778226,3.62968546,140.73,140.64,28.275]
[1723842778535,4.54,140.72,140.64,1.005]
[1723842778725,4.54,140.71,140.64,1.005]
[1723842779529,0.0503419,140.69,140.66,0.04806789]
[1723842780134,0.0503419,140.69,140.66,27.31806789]
[1723842780637,0.0503419,140.69,140.68,27.27]
[1723842780937,4.54,140.78,140.7,27.27]
[1723842781527,3.5513,140.75,140.71,3.5521]
[1723842782129,0.0477166,140.74,140.72,3.59686277]
[1723842782332,0.0477166,140.74,140.72,0.04496277]
[1723842782934,0.0477166,140.74,140.72,27.31496277]
[1723842783526,0.0477166,140.74,140.73,3.5517]
[1723842784229,0.1013,140.85,140.77,3.5507]
[1723842784429,4.62,140.83,140.77,3.5507]
[1723842785024,4.62,140.83,140.77,27.27]
[1723842785430,0.04982286,140.81,140.79,3.60432295]
[1723842786237,0.04982286,140.81,140.8,3.5499]
[1723842787834,3.5487,140.85,140.79,27.32432295]
[1723842788041,8.1684,140.86,140.82,3.5494]
[1723842788341,3.5484,140.86,140.82,3.5494]
[1723842788638,35.46760923,140.89,140.83,27.27]
[1723842788639,4.62,140.89,140.83,27.27]
[1723842789027,3.50736426,140.92,140.85,0.05037378]
[1723842789028,0.05306818,140.87,140.85,0.05037378]
[1723842789229,8.12736426,140.92,140.85,0.05037378]
[1723842789442,0.04751472,140.87,140.85,0.05037378]
[1723842789738,0.04616102,140.87,140.86,3.5482]
[1723842791040,0.04616102,140.87,140.85,3.59887378]
[1723842795049,0.04616102,140.87,140.86,3.5484]
[1723842798451,0.04616102,140.87,140.85,3.59887378]
[1723842799145,3.59426102,140.87,140.85,0.05037378]
[1723842802047,3.5484,140.86,140.85,0.05037378]
[1723842802254,30.8184,140.86,140.85,0.05037378]
[1723842806946,3.5494,140.82,140.79,3.5501]
[1723842807350,8.15399168,140.83,140.79,3.5501]
[1723842807857,8.15399168,140.83,140.78,3.5504]
[1723842808158,0.0527264,140.82,140.8,0.05403442]
[1723842809051,3.6022264,140.82,140.8,0.05403442]
[1723842809554,3.5496,140.81,140.8,0.05403442]
[1723842811277,3.6022264,140.82,140.8,0.05403442]
[1723842811961,0.0527264,140.82,140.8,0.05403442]
[1723842812161,3.5496,140.81,140.8,0.05403442]
[1723842818666,27.27,140.8,140.72,1.3041]
[1723842818961,3.5509,140.76,140.73,3.5517]
[1723842819158,3.5509,140.76,140.72,1.3041]
[1723842819554,0.05109834,140.75,140.73,0.05185319]
[1723842820971,0.05109834,140.75,140.73,3.60355319]
[1723842821853,0.05109834,140.75,140.73,0.05185319]
[1723842824570,0.05109834,140.75,140.73,3.60345319]
[1723842824773,0.05109834,140.75,140.73,0.05185319]
[1723842825777,4.67109834,140.75,140.73,0.05185319]
[1723842827472,8.22229834,140.75,140.73,0.05185319]
[1723842828770,0.05109834,140.75,140.73,0.05185319]
[1723842828968,4.62,140.74,140.73,0.05185319]
[1723842829967,0.05109834,140.75,140.73,0.05185319]
[1723842830170,0.05109834,140.75,140.73,27.32185319]
[1723842830373,0.05109834,140.75,140.74,6.2883]
[1723842837071,0.05109834,140.75,140.74,2.7369]
[1723842837673,0.05109834,140.75,140.74,6.2883]
[1723842839077,0.05109834,140.75,140.73,0.05185319]
[1723842839283,4.62,140.74,140.73,0.05185319]
[1723842839679,8.1714,140.74,140.73,0.05185319]
[1723842840287,4.62,140.74,140.73,0.05185319]
[1723842840477,3.60239834,140.75,140.73,0.05185319]
[1723842840675,4.62,140.74,140.73,0.05185319]
[1723842840883,3.553,140.68,140.65,3.9988]
[1723842841070,27.27,140.79,140.65,3.9988]
[1723842841071,8.25565167,140.7,140.65,3.9988]
[1723842841285,4.62,140.69,140.65,3.9988]
[1723842841784,3.5529,140.68,140.65,3.9988]
[1723842841977,0.04825195,140.68,140.66,0.04619841]
[1723842842683,3.5532,140.67,140.66,0.04619841]
[1723842842989,27.27,140.67,140.58,1.2698]
[1723842843285,3.5548,140.61,140.58,1.2698]
[1723842843486,4.62,140.64,140.58,1.2698]
[1723842843980,3.60169645,140.62,140.6,0.04801379]
[1723842844385,0.04719645,140.62,140.6,0.04801379]
[1723842844883,0.04719645,140.62,140.5,1.005]
[1723842845089,27.27,140.62,140.51,30.019]
[1723842845386,30.87234146,140.62,140.51,30.019]
[1723842845878,30.87234146,140.62,140.53,3.5567]
[1723842846084,0.04917775,140.58,140.55,0.05211634]
[1723842847079,0.04917775,140.58,140.55,2.80111634]
[1723842847390,0.04917775,140.58,140.55,6.35721634]
[1723842847582,0.04917775,140.58,140.55,2.80111634]
[1723842847982,0.04917775,140.58,140.56,3.5557]
[1723842848192,4.74,140.63,140.56,27.27]
[1723842848387,4.74,140.63,140.58,27.27]
[1723842848581,3.50969104,140.67,140.58,27.27]
[1723842848797,3.50969104,140.67,140.59,3.5552]
[1723842848798,3.5543,140.63,140.59,3.5552]
[1723842849293,0.04844111,140.62,140.6,3.60597993]
[1723842849684,0.04844111,140.62,140.6,0.05107993]